bitfinex/quotes_BTCUSD_20241202
["timestamp","ask_amount","ask_price","bid_price","bid_amount"]
[1733112217091,0.24982181,96713.0,96712.0,0.0639653]
[1733112217536,0.24882181,96713.0,96712.0,0.0509653]
[1733112217755,0.43540765,96713.0,96712.0,0.0509653]
[1733112217991,0.43740765,96713.0,96712.0,0.0609653]
[1733112218445,0.45056322,96713.0,96712.0,0.0609653]
[1733112218651,0.36297738,96713.0,96712.0,0.0559653]
[1733112218878,0.36397738,96713.0,96712.0,0.0609653]
[1733112219349,0.36097738,96713.0,96712.0,0.0509653]
[1733112219811,0.34882181,96713.0,96712.0,0.0519653]
[1733112220026,0.34782181,96713.0,96712.0,0.0509653]
[1733112220459,0.34882181,96713.0,96712.0,0.0519653]
[1733112220678,0.34882181,96713.0,96712.0,0.0559653]
[1733112220679,0.22831892,96713.0,96712.0,0.0559653]
[1733112220895,0.00127371,96713.0,96712.0,0.0559653]
[1733112221118,0.00227371,96713.0,96712.0,0.0569653]
[1733112221556,0.00127371,96713.0,96712.0,0.0519653]
[1733112222056,0.00127371,96713.0,96712.0,0.0569653]
[1733112222262,0.10590362,96713.0,96712.0,0.0569653]
[1733112222478,0.23493308,96713.0,96712.0,0.0509653]
[1733112222710,0.23364521,96713.0,96712.0,0.0569653]
[1733112222925,0.23264521,96713.0,96712.0,0.0509653]
[1733112223344,0.23364521,96713.0,96712.0,0.0569653]
[1733112223561,0.23264521,96713.0,96712.0,0.0509653]
[1733112223982,0.23464521,96713.0,96712.0,0.0649653]
[1733112224189,0.23464521,96713.0,96712.0,0.0589653]
[1733112224400,0.33364521,96713.0,96712.0,0.0509653]
[1733112224616,0.66871339,96713.0,96712.0,8.3e-07]
[1733112224819,0.30682,96702.0,96697.0,0.0008651]
[1733112225027,0.16843371,96701.0,96697.0,0.0008651]
[1733112226689,0.16943371,96701.0,96700.0,0.007865]
[1733112227109,0.16843371,96701.0,96700.0,0.000865]
[1733112227314,0.16943371,96701.0,96700.0,0.011865]
[1733112227758,0.18221467,96701.0,96700.0,0.004865]
[1733112227951,0.18221467,96701.0,96700.0,0.000865]
[1733112228156,0.18321467,96701.0,96700.0,0.011865]
[1733112228782,0.18321467,96701.0,96700.0,0.007865]
[1733112229202,0.26289994,96701.0,96700.0,0.007865]
[1733112229423,0.26061144,96701.0,96700.0,0.007865]
[1733112229855,0.25961144,96701.0,96700.0,0.000865]
[1733112230067,0.17992617,96701.0,96700.0,0.004865]
[1733112230290,0.18321465,96701.0,96700.0,0.009865]
[1733112230498,0.18321465,96701.0,96700.0,0.000865]
[1733112230959,0.18421465,96701.0,96700.0,0.009865]
[1733112231171,0.20682,96702.0,96700.0,0.004865]
[1733112231386,0.20682,96702.0,96700.0,0.000865]
[1733112231598,0.00228802,96701.0,96700.0,0.000865]
[1733112231804,0.00228802,96701.0,96700.0,0.004865]
[1733112232258,0.10513323,96701.0,96700.0,0.004865]
[1733112232470,0.18593323,96701.0,96700.0,0.004865]
[1733112232680,0.10284521,96701.0,96700.0,0.010865]
[1733112232942,0.18263136,96702.0,96700.0,0.010865]
[1733112233366,0.18263136,96702.0,96700.0,0.006865]
[1733112233603,0.00228812,96701.0,96700.0,0.010865]
[1733112233822,0.00228812,96701.0,96700.0,0.004865]
[1733112234036,0.00228812,96701.0,96700.0,0.000865]
[1733112234263,0.00228812,96701.0,96700.0,0.006865]
[1733112234480,0.00228812,96701.0,96700.0,0.004865]
[1733112234913,0.00228812,96701.0,96700.0,0.000865]
[1733112235351,0.206818,96704.0,96700.0,0.000865]
[1733112235579,0.16017854,96710.0,96701.0,0.288823]
[1733112235794,0.0017306,96712.0,96701.0,0.288823]
[1733112235795,0.0017306,96712.0,96703.0,0.206818]
[1733112236011,0.0017306,96712.0,96704.0,0.1046753]
[1733112236518,0.0017306,96712.0,96710.0,0.206802]
[1733112236762,0.0017306,96712.0,96705.0,0.206814]
[1733112237005,0.0017306,96712.0,96706.0,0.17061478]
[1733112237006,0.0037306,96712.0,96706.0,0.17061478]
[1733112237208,0.0037306,96712.0,96707.0,0.206809]
[1733112237466,0.0017306,96712.0,96709.0,0.206805]
[1733112237722,0.0057306,96712.0,96710.0,0.00183002]
[1733112237968,0.0087306,96712.0,96707.0,0.16945833]
[1733112238165,0.0087306,96712.0,96708.0,0.04873306]
[1733112238370,0.0087306,96712.0,96704.0,0.206816]
[1733112238607,0.0087306,96712.0,96702.0,0.023]
[1733112238608,0.206802,96711.0,96701.0,0.15]
[1733112238820,0.206802,96711.0,96696.0,0.023]
[1733112238821,0.16017854,96711.0,96696.0,0.023]
[1733112239035,0.16017854,96711.0,96702.0,0.15]
[1733112240144,0.0017306,96712.0,96702.0,0.356819]
[1733112240357,0.004,96711.0,96703.0,0.06894952]
[1733112240803,0.004,96711.0,96703.0,0.27293556]
[1733112240999,0.007,96711.0,96703.0,0.47975356]
[1733112241227,0.003,96711.0,96705.0,0.206814]
[1733112241444,0.003,96711.0,96707.0,0.20681]
[1733112241663,0.003,96711.0,96708.0,0.15]
[1733112241891,0.003,96711.0,96710.0,0.15]
[1733112242115,0.003,96711.0,96710.0,0.173]
[1733112242331,0.0017306,96712.0,96711.0,0.023]
[1733112242575,0.0017306,96712.0,96711.0,0.07346178]
[1733112243027,0.0017306,96712.0,96706.0,0.04550778]
[1733112243028,0.210801,96711.0,96707.0,0.023]
[1733112243252,0.213801,96711.0,96707.0,0.023]
[1733112243467,0.20682,96703.0,96693.0,0.0465]
[1733112243957,0.206832,96697.0,96685.0,0.0008652]
[1733112244179,0.16017854,96696.0,96686.0,0.01298652]
[1733112244397,0.16017854,96696.0,96685.0,0.0008652]
[1733112244398,0.206854,96687.0,96685.0,0.0008652]
[1733112244642,0.20684,96693.0,96685.0,0.0008652]
[1733112244873,0.206854,96687.0,96685.0,0.0008652]
[1733112245089,0.00228857,96686.0,96685.0,0.0008652]
[1733112246713,0.00228857,96686.0,96685.0,0.0028652]
[1733112246955,0.00228857,96686.0,96685.0,0.0008652]
[1733112247175,0.00228857,96686.0,96685.0,0.0088652]
[1733112247400,0.00428857,96686.0,96685.0,0.0178652]
[1733112247879,0.00328857,96686.0,96685.0,0.0098652]
[1733112248124,0.00428857,96686.0,96685.0,0.0178652]
[1733112248592,0.00328857,96686.0,96685.0,0.0088652]
[1733112249143,0.002,96686.0,96685.0,0.0408652]
[1733112249577,0.002,96686.0,96685.0,0.09372892]
[1733112250016,0.001,96686.0,96685.0,0.08572892]
[1733112250235,0.206962,96636.0,96635.0,0.02097143]
[1733112250503,0.206966,96635.0,96613.0,0.0456]
[1733112250726,0.206966,96635.0,96598.0,0.1008653]
[1733112250727,0.206968,96633.0,96598.0,0.0008653]
[1733112250947,0.35513501,96632.0,96598.0,0.0008653]
[1733112251161,0.45284521,96632.0,96598.0,0.0008653]
[1733112251601,0.45887543,96632.0,96598.0,0.0008653]
[1733112251814,0.556972,96631.0,96630.0,3e-07]
[1733112252027,0.65981721,96631.0,96630.0,0.00059605]
[1733112252244,0.66584743,96631.0,96630.0,0.00059605]
[1733112252456,0.69298964,96631.0,96630.0,0.00059605]
[1733112252913,0.7958211,96631.0,96630.0,0.00059605]
[1733112253126,0.76264867,96631.0,96630.0,0.00200005]
[1733112253340,0.79878596,96631.0,96630.0,5e-08]
[1733112254196,0.76967889,96631.0,96630.0,5e-08]
[1733112254894,0.79878596,96631.0,96630.0,5e-08]
[1733112255148,0.79878596,96631.0,96598.0,0.0008653]
[1733112255149,0.637805,96616.0,96615.0,6.4e-07]
[1733112255371,0.637805,96616.0,96598.0,0.0008653]
[1733112255372,0.35,96610.0,96609.0,6.4e-07]
[1733112255585,0.45284521,96610.0,96609.0,6.4e-07]
[1733112255795,0.4879825,96610.0,96609.0,0.00017926]
[1733112256427,0.4879825,96610.0,96609.0,2.6e-07]
[1733112256632,0.56533174,96610.0,96609.0,2.6e-07]
[1733112257060,0.56633174,96610.0,96609.0,2.6e-07]
[1733112257267,0.56633174,96610.0,96609.0,0.00100026]
[1733112257483,0.4889825,96610.0,96609.0,0.00100026]
[1733112259282,0.45384521,96610.0,96609.0,0.00100026]
[1733112259958,0.50464122,96610.0,96609.0,0.00100026]
[1733112260177,0.2,96601.0,96600.0,3.6e-07]
[1733112260394,0.51083929,96601.0,96600.0,0.00017895]
[1733112260626,0.538584,96601.0,96600.0,0.00017895]
[1733112261055,0.482881,96601.0,96600.0,0.00017895]
[1733112261287,0.482881,96601.0,96546.0,0.207154]
[1733112261288,0.357062,96589.0,96536.0,0.207176]
[1733112261494,0.65990721,96589.0,96536.0,0.207176]
[1733112261707,0.69597322,96589.0,96588.0,0.00146032]
[1733112261933,0.78627594,96589.0,96588.0,0.00146032]
[1733112262571,0.557077,96582.0,96581.0,5e-07]
[1733112262782,0.557105,96569.0,96568.0,1e-06]
[1733112263005,0.65995021,96569.0,96568.0,1e-06]
[1733112263218,0.69443304,96569.0,96568.0,1e-06]
[1733112263889,0.69338712,96569.0,96568.0,1e-06]
[1733112264105,0.6909588,96569.0,96568.0,1e-06]
[1733112264587,0.65647597,96569.0,96568.0,1e-06]
[1733112265014,0.65647597,96569.0,96568.0,0.003001]
[1733112265249,0.65747597,96569.0,96568.0,0.003001]
[1733112265492,0.65647597,96569.0,96568.0,1e-06]
[1733112265968,0.1,96549.0,96510.0,0.01191644]
[1733112266198,0.207188,96531.0,96511.0,0.35789517]
[1733112266457,0.16054833,96531.0,96511.0,0.35789517]
[1733112266893,0.36773633,96531.0,96511.0,0.35789517]
[1733112267127,0.36773633,96531.0,96513.0,0.023]
[1733112267339,0.36833072,96531.0,96515.0,0.023]
[1733112267557,0.36833072,96531.0,96515.0,0.12584521]
[1733112268026,0.207202,96524.0,96513.0,0.023]
[1733112268259,0.207202,96524.0,96515.0,0.023]
[1733112268480,0.207217,96518.0,96515.0,0.023]
[1733112268700,0.207205,96523.0,96510.0,0.01191644]
[1733112268936,0.207205,96523.0,96511.0,0.14776095]
[1733112270115,0.210205,96523.0,96511.0,0.14776095]
[1733112270331,0.00059439,96531.0,96511.0,0.14776095]
[1733112270766,0.004,96523.0,96511.0,0.35498895]
[1733112270985,0.004,96523.0,96511.0,0.56221895]
[1733112271201,0.007,96523.0,96514.0,0.023]
[1733112271420,0.007,96523.0,96515.0,0.414441]
[1733112271642,0.004,96523.0,96515.0,0.10284521]
[1733112271882,0.004,96523.0,96516.0,0.023]
[1733112272101,0.24097482,96530.0,96517.0,0.01596774]
[1733112272327,0.207215,96518.0,96511.0,0.023]
[1733112272548,0.24097482,96530.0,96511.0,0.12584521]
[1733112272785,0.005,96523.0,96511.0,0.12584521]
[1733112273004,0.005,96523.0,96513.0,0.023]
[1733112273691,0.003,96518.0,96512.0,0.023]
[1733112273904,0.005,96523.0,96512.0,0.023]
[1733112274118,0.00059439,96531.0,96512.0,0.023]
[1733112274334,0.00059439,96531.0,96514.0,0.023]
[1733112274572,0.005,96530.0,96515.0,0.207221]
[1733112274785,0.005,96530.0,96514.0,0.023]
[1733112274998,0.005,96530.0,96515.0,0.207221]
[1733112275240,0.005,96530.0,96516.0,0.207219]
[1733112275477,0.005,96523.0,96517.0,0.05867098]
[1733112275699,0.00059439,96531.0,96517.0,0.05867098]
[1733112275939,0.003,96523.0,96517.0,0.05867098]
[1733112276386,0.003,96523.0,96517.0,0.26588798]
[1733112276846,0.003,96523.0,96519.0,0.0493]
[1733112277157,0.00059439,96531.0,96521.0,0.15]
[1733112277339,0.00059439,96531.0,96530.0,0.380189]
[1733112277591,0.00059439,96531.0,96530.0,0.52813421]
[1733112277833,0.207081,96581.0,96530.0,0.52813421]
[1733112277834,0.207066,96588.0,96538.0,0.023]
[1733112278062,0.286356,96593.0,96541.0,0.023]
[1733112278063,0.24097482,96580.0,96541.0,0.023]
[1733112278294,0.00229113,96579.0,96543.0,0.023]
[1733112278523,0.00229113,96579.0,96553.0,0.023]
[1733112278999,0.15229113,96579.0,96553.0,0.023]
[1733112279241,0.15229113,96579.0,96543.0,0.207161]
[1733112279242,0.24097482,96570.0,96539.0,0.023]
[1733112279474,0.00229138,96569.0,96546.0,0.207154]
[1733112279764,0.10284521,96578.0,96557.0,0.207129]
[1733112279982,0.0022913,96577.0,96557.0,0.207129]
[1733112280200,0.10284521,96576.0,96557.0,0.207129]
[1733112280446,0.0022913,96575.0,96557.0,0.207129]
[1733112280666,0.10284521,96574.0,96557.0,0.207129]
[1733112280880,0.0022913,96573.0,96558.0,0.01757154]
[1733112281317,0.207052,96595.0,96559.0,0.023]
[1733112281604,0.1,96596.0,96559.0,0.023]
[1733112281605,0.10513622,96594.0,96570.0,0.207101]
[1733112281855,0.10513622,96594.0,96572.0,0.207098]
[1733112282066,0.207054,96593.0,96562.0,0.23012]
[1733112282331,0.24097482,96590.0,96563.0,0.04574652]
[1733112282551,0.001,96569.0,96563.0,0.25286352]
[1733112282775,0.31219819,96589.0,96563.0,0.25286352]
[1733112282776,0.31219819,96589.0,96563.0,0.25304245]
[1733112283981,0.207074,96584.0,96563.0,0.04592545]
[1733112284196,0.207065,96588.0,96563.0,0.00017893]
[1733112284419,0.10284521,96583.0,96563.0,0.00017893]
[1733112284637,0.00207796,96582.0,96563.0,0.00017893]
[1733112284925,0.10492317,96582.0,96563.0,0.00017893]
[1733112285137,0.10492317,96582.0,96564.0,0.01216789]
[1733112286506,0.001,96589.0,96564.0,0.01216789]
[1733112286732,0.001,96589.0,96573.0,0.207095]
[1733112286960,0.00207796,96595.0,96574.0,0.0018326]
[1733112287183,0.001,96582.0,96575.0,0.22798506]
[1733112287447,0.001,96582.0,96575.0,0.43507706]
[1733112287664,0.00207796,96598.0,96578.0,0.023]
[1733112287936,0.00207796,96609.0,96580.0,0.023]
[1733112288174,0.00207796,96609.0,96579.0,0.15017768]
[1733112288175,0.00207796,96609.0,96596.0,0.207047]
[1733112288423,0.0017324,96610.0,96596.0,0.207047]
[1733112288637,0.0017324,96610.0,96601.0,0.207035]
[1733112288879,0.0017324,96610.0,96593.0,0.023]
[1733112289100,0.0017324,96610.0,96603.0,0.207031]
[1733112289360,0.0017324,96610.0,96609.0,0.20702]
[1733112289614,0.09850976,96635.0,96609.0,0.20702]
[1733112289821,0.30981121,96634.0,96609.0,0.20702]
[1733112290091,0.005,96610.0,96609.0,0.20851024]
[1733112290352,0.014,96610.0,96609.0,0.20851024]
[1733112290621,0.005,96610.0,96609.0,0.27767888]
[1733112291128,0.005,96610.0,96609.0,0.40352409]
[1733112291359,0.004,96635.0,96610.0,0.023]
[1733112291814,0.004,96635.0,96612.0,0.207013]
[1733112292356,0.206955,96639.0,96617.0,0.207001]
[1733112292639,0.24097482,96630.0,96618.0,0.02088328]
[1733112292904,0.206991,96623.0,96601.0,0.00149024]
[1733112293125,0.207023,96608.0,96590.0,0.0454]
[1733112293354,0.24097482,96614.0,96590.0,0.00149024]
[1733112293577,0.24097482,96614.0,96593.0,0.207052]
[1733112293578,0.10284521,96613.0,96593.0,0.207052]
[1733112293799,0.207013,96612.0,96590.0,0.00149024]
[1733112294073,0.207017,96610.0,96590.0,0.00149024]
[1733112294321,0.10284521,96610.0,96590.0,0.00149024]
[1733112295105,0.10284521,96610.0,96578.0,0.252486]
[1733112295106,0.10284521,96610.0,96589.0,0.207062]
[1733112295344,0.10284521,96609.0,96589.0,0.207062]
[1733112295575,0.10284521,96609.0,96594.0,0.20705]
[1733112296280,0.10284521,96609.0,96603.0,0.00317893]
[1733112296740,0.10284521,96609.0,96603.0,0.00017893]
[1733112296971,0.10284521,96609.0,96603.0,0.00317893]
[1733112297197,0.207022,96608.0,96603.0,0.00317893]
[1733112297421,0.10284521,96607.0,96603.0,0.00017893]
[1733112297879,0.207026,96606.0,96603.0,0.00017893]
[1733112298103,0.10284521,96605.0,96603.0,0.00017893]
[1733112298802,0.20703,96604.0,96603.0,0.00017893]
[1733112299050,0.10284521,96605.0,96603.0,0.00017893]
[1733112299277,0.10284521,96604.0,96603.0,0.00017893]
[1733112300525,0.10484521,96604.0,96603.0,0.00017893]
[1733112301226,0.10584521,96604.0,96603.0,0.00017893]
[1733112301752,0.10757821,96604.0,96603.0,0.00017893]
[1733112301969,0.1497993,96604.0,96603.0,0.00017893]
[1733112302431,0.1477993,96604.0,96603.0,0.00017893]
[1733112302678,0.10657821,96604.0,96603.0,0.00717893]
[1733112303622,0.10557821,96604.0,96603.0,0.00717893]
[1733112304384,0.10657821,96604.0,96603.0,0.01617893]
[1733112304622,0.44870167,96604.0,96603.0,0.01617893]
[1733112305322,0.28827821,96604.0,96603.0,0.01617893]
[1733112305578,0.38678797,96604.0,96603.0,0.01617893]
[1733112307196,0.39794423,96604.0,96603.0,0.00017893]
[1733112307434,0.39894423,96604.0,96603.0,0.00817893]
[1733112307657,0.43578797,96604.0,96603.0,0.01017893]
[1733112307848,0.43478797,96604.0,96603.0,0.00217893]
[1733112308712,0.52967167,96604.0,96603.0,0.00217893]
[1733112308968,0.207096,96574.0,96564.0,0.04857893]
[1733112309456,0.207087,96578.0,96564.0,0.04857893]
[1733112309679,0.24097482,96580.0,96564.0,0.04857893]
[1733112309934,0.207108,96568.0,96564.0,0.04857893]
[1733112310177,0.207101,96571.0,96563.0,0.0008665]
[1733112310414,6.145e-05,96568.0,96563.0,0.0008665]
[1733112310862,6.145e-05,96568.0,96564.0,0.02079915]
[1733112311095,6.145e-05,96568.0,96564.0,0.012]
[1733112311324,6.145e-05,96568.0,96565.0,0.207114]
[1733112311802,0.00706145,96568.0,96567.0,0.00149024]
[1733112312026,6.145e-05,96568.0,96567.0,0.04769024]
[1733112312264,6.145e-05,96568.0,96567.0,0.11486521]
[1733112312500,6.145e-05,96568.0,96567.0,0.04769024]
[1733112313198,6.145e-05,96568.0,96567.0,0.0462]
[1733112313435,0.00806145,96568.0,96567.0,0.04769024]
[1733112313657,0.00506145,96568.0,96567.0,0.04769024]
[1733112314148,0.00906145,96568.0,96567.0,0.04952306]
[1733112314417,0.01506145,96568.0,96567.0,0.45363073]
[1733112314639,0.001733,96604.0,96597.0,0.207044]
[1733112314871,0.001733,96604.0,96591.0,0.05109024]
[1733112314872,0.001733,96604.0,96603.0,0.00149024]
[1733112315091,0.00191178,96604.0,96603.0,0.00149024]
[1733112315322,0.00191178,96604.0,96603.0,0.04322947]
[1733112315848,0.00191178,96604.0,96603.0,0.21660678]
[1733112316069,0.00191178,96604.0,96603.0,0.29707468]
[1733112317494,0.00191178,96604.0,96603.0,0.30107468]
[1733112317731,0.00491178,96604.0,96603.0,0.30107468]
[1733112317976,0.00491178,96604.0,96603.0,0.29707468]
[1733112323742,0.00491178,96604.0,96603.0,0.44707468]
[1733112325213,0.001732,96635.0,96634.0,0.206966]
[1733112325466,0.00232782,96635.0,96634.0,0.24850932]
[1733112325708,0.00232782,96635.0,96634.0,0.24999956]
[1733112326914,0.00232782,96635.0,96634.0,0.37584477]
[1733112327233,0.00632782,96635.0,96634.0,0.37584477]
[1733112327470,0.00632782,96635.0,96634.0,0.52584477]
[1733112328159,0.00932782,96635.0,96634.0,0.52584477]
[1733112329249,0.00532782,96635.0,96634.0,0.52584477]
[1733112329485,0.00332782,96635.0,96634.0,0.52584477]
[1733112329694,1.0,96650.0,96649.0,0.20842424]
[1733112329921,1.00017867,96650.0,96649.0,0.25540093]
[1733112331124,1.00017867,96650.0,96649.0,0.57984614]
[1733112331321,1.00017867,96650.0,96649.0,0.65984614]
[1733112331536,1.00317867,96650.0,96649.0,0.68036204]
[1733112331775,1.00561841,96650.0,96649.0,0.68036204]
[1733112332194,1.00561841,96650.0,96649.0,0.78036204]
[1733112332428,1.00961841,96650.0,96649.0,0.78036204]
[1733112332681,1.00261841,96650.0,96649.0,0.78036204]
[1733112333125,1.00561841,96650.0,96649.0,0.78036204]
[1733112333367,1.00561841,96650.0,96649.0,0.74941204]
[1733112334074,1.00361841,96650.0,96649.0,0.64941204]
[1733112334297,1.00361841,96650.0,96649.0,0.4514219]
[1733112334516,1.00361841,96650.0,96649.0,0.04797669]
[1733112334743,1.00361841,96650.0,96649.0,0.001]
[1733112335395,1.18836362,96650.0,96649.0,0.001]
[1733112336059,1.18736362,96650.0,96603.0,0.02086984]
[1733112336279,1.18736362,96650.0,96605.0,0.01359903]
[1733112336280,0.24082318,96640.0,96605.0,0.01359903]
[1733112336520,0.207008,96615.0,96606.0,0.01164442]
[1733112336731,0.0028752,96614.0,96592.0,0.1232]
[1733112336944,0.0028752,96614.0,96594.0,0.207052]
[1733112337167,0.24082318,96620.0,96595.0,0.10467724]
[1733112337376,0.206998,96619.0,96603.0,0.009]
[1733112337592,0.207018,96610.0,96605.0,0.009]
[1733112337819,0.207002,96617.0,96605.0,0.009]
[1733112338029,0.00282574,96609.0,96603.0,0.00959582]
[1733112338240,0.30984721,96617.0,96603.0,0.00959582]
[1733112338453,0.0028249,96608.0,96603.0,0.00059582]
[1733112338683,0.207016,96611.0,96603.0,0.00059582]
[1733112338893,0.00282405,96607.0,96603.0,0.00059582]
[1733112339126,0.207016,96611.0,96603.0,0.00059582]
[1733112339330,0.414032,96611.0,96603.0,0.00059582]
[1733112339538,0.207029,96605.0,96603.0,0.00059582]
[1733112339816,0.0028592,96604.0,96603.0,0.00059582]
[1733112339999,0.207018,96610.0,96603.0,0.00959582]
[1733112340195,0.00285757,96604.0,96603.0,0.00059582]
[1733112340446,0.207018,96610.0,96603.0,0.00959582]
[1733112340696,0.004,96605.0,96603.0,0.02359582]
[1733112340903,0.004,96605.0,96604.0,0.023]
[1733112341130,0.001,96611.0,96604.0,0.023]
[1733112341337,0.001,96611.0,96604.0,0.02483203]
[1733112341575,0.001,96611.0,96606.0,0.023]
[1733112341799,0.001,96611.0,96608.0,0.023]
[1733112342046,0.001,96611.0,96610.0,0.023]
[1733112342466,0.001,96611.0,96610.0,0.02483188]
[1733112342890,0.206983,96626.0,96610.0,0.02483188]
[1733112343085,0.206983,96626.0,96612.0,0.023]
[1733112343300,0.00287435,96625.0,96614.0,0.023]
[1733112343508,0.206987,96624.0,96614.0,0.023]
[1733112343720,0.00285727,96623.0,96614.0,0.023]
[1733112344170,0.20984727,96623.0,96614.0,0.023]
[1733112344396,0.207007,96615.0,96614.0,0.023]
[1733112344603,0.207007,96615.0,96614.0,0.005]
[1733112344881,0.20985753,96615.0,96614.0,0.01984209]
[1733112345084,0.20703,96604.0,96603.0,0.00059582]
[1733112345535,0.20983841,96604.0,96603.0,0.00059582]
[1733112347459,0.21083841,96604.0,96603.0,0.00959582]
[1733112347682,0.20983841,96604.0,96603.0,0.00059582]
[1733112347908,0.20983841,96604.0,96603.0,0.00959582]
[1733112348179,0.21083841,96604.0,96603.0,0.01859582]
[1733112348388,0.21083841,96604.0,96603.0,0.00959582]
[1733112348820,0.21083841,96604.0,96603.0,0.01859582]
[1733112349467,0.21083841,96604.0,96603.0,0.01946202]
[1733112350356,0.21083841,96604.0,96603.0,0.01539408]
[1733112351206,0.31368362,96604.0,96603.0,0.01539408]
[1733112351858,0.53237448,96604.0,96603.0,0.01539408]
[1733112352781,0.63137448,96604.0,96603.0,0.0098662]
[1733112352987,0.65189576,96604.0,96603.0,2e-07]
[1733112353195,0.80289576,96604.0,96603.0,2e-07]
[1733112353412,0.80389576,96604.0,96603.0,2e-07]
[1733112353903,0.1,96592.0,96563.0,0.0008665]
[1733112354103,0.207105,96569.0,96568.0,0.00104538]
[1733112354570,0.20990503,96569.0,96568.0,0.00104538]
[1733112356502,0.20990503,96569.0,96568.0,0.00804538]
[1733112356717,0.21090503,96569.0,96568.0,0.00804538]
[1733112356972,0.41475024,96569.0,96568.0,0.00804538]
[1733112357192,0.50664446,96569.0,96568.0,0.00104538]
[1733112357419,0.50764446,96569.0,96568.0,0.00904538]
[1733112357654,0.60764446,96569.0,96568.0,0.00904538]
[1733112357864,0.60764446,96569.0,96568.0,0.00104538]
[1733112357865,0.60564446,96569.0,96568.0,0.00104538]
[1733112358073,0.75564446,96569.0,96568.0,0.00304538]
[1733112358313,0.75664446,96569.0,96568.0,0.00304538]
[1733112358554,0.83334446,96569.0,96568.0,0.00304538]
[1733112359330,0.20717,96539.0,96500.0,26.07279891]
[1733112359550,0.207223,96514.0,96500.0,26.07279891]
[1733112359793,0.31006821,96514.0,96513.0,0.00146039]
[1733112360049,0.49469211,96514.0,96513.0,0.00146039]
[1733112360273,0.35,96512.0,96511.0,2.9e-07]
[1733112360497,0.45284521,96512.0,96511.0,2.9e-07]
[1733112360721,0.48461408,96512.0,96511.0,2.9e-07]
[1733112360948,0.35556269,96512.0,96511.0,2.9e-07]
[1733112361385,0.10556269,96512.0,96511.0,2.9e-07]
[1733112362101,0.00271748,96512.0,96511.0,2.9e-07]
[1733112362545,0.20781819,96514.0,96511.0,2.9e-07]
[1733112362780,0.00315251,96512.0,96511.0,2.9e-07]
[1733112362999,0.207225,96513.0,96511.0,2.9e-07]
[1733112363213,0.21037855,96513.0,96511.0,2.9e-07]
[1733112363426,0.00415251,96512.0,96511.0,2.9e-07]
[1733112363876,0.12117152,96512.0,96511.0,2.9e-07]
[1733112364101,0.12720174,96512.0,96511.0,2.9e-07]
[1733112364318,0.12720174,96512.0,96511.0,0.00600029]
[1733112364568,0.22820174,96512.0,96511.0,0.00600029]
[1733112364784,0.22720174,96512.0,96511.0,2.9e-07]
[1733112365009,0.3312998,96512.0,96511.0,2.9e-07]
[1733112365265,0.35369843,96512.0,96511.0,0.00600029]
[1733112365493,0.35269843,96512.0,96511.0,0.00600029]
[1733112365732,0.35369843,96512.0,96511.0,0.00600029]
[1733112365979,0.2332998,96512.0,96511.0,0.00600029]
[1733112366224,0.2322998,96512.0,96511.0,0.00600029]
[1733112366499,0.3312998,96512.0,96511.0,2.9e-07]
[1733112366712,0.5812998,96512.0,96511.0,0.006]
[1733112366935,0.56326022,96511.0,96510.0,7.3e-07]
[1733112367151,0.25,96507.0,96506.0,9.3e-07]
[1733112367374,0.45284521,96507.0,96506.0,9.3e-07]
[1733112367606,0.45887543,96507.0,96506.0,9.3e-07]
[1733112367829,0.2,96501.0,96500.0,26.07279891]
[1733112368070,0.50927297,96501.0,96500.0,26.07279891]
[1733112368294,0.50999788,96501.0,96500.0,26.07279891]
[1733112368519,1.04989788,96501.0,96500.0,26.07279891]
[1733112368746,1.07329594,96501.0,96500.0,25.92894891]
[1733112368998,1.07329594,96501.0,96500.0,25.77637891]
[1733112369238,1.15099594,96501.0,96500.0,25.47014527]
[1733112369472,1.15099594,96501.0,96500.0,25.38196527]
[1733112369473,1.09379064,96501.0,96500.0,25.38196527]
[1733112369697,1.09379064,96501.0,96500.0,24.69182627]
[1733112369698,1.10979064,96501.0,96500.0,24.69182627]
[1733112369920,1.08679064,96501.0,96500.0,24.41701658]
[1733112370143,1.09179064,96501.0,96500.0,24.18988295]
[1733112370381,0.47737013,96501.0,96500.0,23.9783828]
[1733112370597,0.47737013,96501.0,96500.0,23.9773828]
[1733112370598,0.36237013,96501.0,96500.0,23.9773828]
[1733112371060,0.36837013,96501.0,96500.0,23.9773828]
[1733112371512,0.36237013,96501.0,96500.0,23.9773828]
[1733112371782,0.37937013,96501.0,96500.0,23.9773828]
[1733112371999,0.44975534,96501.0,96500.0,23.9773828]
[1733112372250,0.45575534,96501.0,96500.0,23.9773828]
[1733112373126,0.44775534,96501.0,96500.0,23.9773828]
[1733112373340,0.45275534,96501.0,96500.0,23.9783828]
[1733112373783,0.45275534,96501.0,96500.0,23.9792489]
[1733112374673,0.4769823,96501.0,96500.0,23.9792489]
[1733112374891,0.4769823,96501.0,96500.0,23.96887745]
[1733112375361,0.4769823,96501.0,96500.0,23.94815245]
[1733112375633,1.0168823,96501.0,96500.0,23.94815245]
[1733112377017,0.93749709,96501.0,96500.0,23.94815245]
[1733112377245,0.91327013,96501.0,96500.0,23.94815245]
[1733112377462,0.81327013,96501.0,96500.0,23.94815245]
[1733112377682,0.91327013,96501.0,96500.0,23.94815245]
[1733112378594,0.37337013,96501.0,96500.0,23.94815245]
[1733112378816,0.37337013,96501.0,96500.0,23.94272816]
[1733112378817,0.45215534,96501.0,96500.0,23.94272816]
[1733112379024,0.99205534,96501.0,96500.0,23.90127816]
[1733112379508,0.99205534,96501.0,96500.0,23.85982816]
[1733112381070,0.99205534,96501.0,96500.0,23.84852198]
[1733112382398,0.99205534,96501.0,96500.0,23.80036987]
[1733112382835,0.99205534,96501.0,96500.0,23.75891987]
[1733112383066,0.99205534,96501.0,96500.0,23.69674487]
[1733112383290,0.99216173,96501.0,96500.0,23.69674487]
[1733112383714,0.99216173,96501.0,96500.0,23.67601987]
[1733112383918,1.01654065,96501.0,96500.0,23.63456987]
[1733112384783,1.01654065,96501.0,96500.0,23.52156606]
[1733112384989,1.03962752,96501.0,96500.0,23.52156606]
[1733112385223,1.03962752,96501.0,96500.0,22.25313239]
[1733112385442,0.98384231,96501.0,96500.0,21.99248773]
[1733112385641,0.97884231,96501.0,96500.0,21.80546281]
[1733112385849,0.98957471,96501.0,96500.0,21.7585662]
[1733112386062,0.39015918,96501.0,96500.0,21.7585662]
[1733112386277,0.36707231,96501.0,96500.0,21.7585662]
[1733112386484,0.31807231,96501.0,96500.0,21.7575662]